[Event "Titled Tuesday Blitz March 15 Late 2022"]
[White "Zhou, Qiyu"]
[Black "Yang, Kaiqi"]
[WhiteFideId "505161"]
[BlackFideId "8604398"]
[WhiteElo "1925"]
[BlackElo "2373"]
[Result "0-1"]
[Round "02"]
[TimeControl "180+1"]
[Date "2022.03.16"]
[WhiteClock "0:00:02"]
[BlackClock "0:00:10"]

1. e4 {[%clk 0:03:00]}  c5 {[%clk 0:03:00]} 2. Nf3 {[%clk 0:02:56]}  Nf6 {[%clk 0:03:00]} 3. e5 {[%clk 0:02:54]}  Nd5 {[%clk 0:03:00]} 4. c3 {[%clk 0:02:42]}  Nc6 {[%clk 0:02:57]} 5. d4 {[%clk 0:02:40]}  cxd4 {[%clk 0:02:58]} 6. cxd4 {[%clk 0:02:41]}  d6 {[%clk 0:02:58]} 7. Bc4 {[%clk 0:02:34]}  e6 {[%clk 0:02:57]} 8. O-O {[%clk 0:02:34]}  Be7 {[%clk 0:02:57]} 9. Re1 {[%clk 0:02:31]}  O-O {[%clk 0:02:56]} 10. Nc3 {[%clk 0:02:26]}  Nxc3 {[%clk 0:02:56]} 11. bxc3 {[%clk 0:02:27]}  dxe5 {[%clk 0:02:57]} 12. Nxe5 {[%clk 0:02:23]}  Nxe5 {[%clk 0:02:56]} 13. Rxe5 {[%clk 0:02:24]}  Bf6 {[%clk 0:02:54]} 14. Re1 {[%clk 0:02:21]}  Qc7 {[%clk 0:02:48]} 15. Qb3 {[%clk 0:02:15]}  Bd7 {[%clk 0:02:45]} 16. Bb2 {[%clk 0:02:12]}  b5 {[%clk 0:02:30]} 17. Bd3 {[%clk 0:02:10]}  Rab8 {[%clk 0:02:28]} 18. Rac1 {[%clk 0:02:06]}  Rfc8 {[%clk 0:02:26]} 19. Qd1 {[%clk 0:01:38]}  g6 {[%clk 0:02:21]} 20. Qf3 {[%clk 0:01:35]}  Bg7 {[%clk 0:02:21]} 21. h4 {[%clk 0:01:31]}  Bc6 {[%clk 0:02:20]} 22. Qe2 {[%clk 0:01:28]}  Qb7 {[%clk 0:02:08]} 23. f3 {[%clk 0:01:23]}  Bd5 {[%clk 0:02:03]} 24. Ba3 {[%clk 0:01:07]}  Bc4 {[%clk 0:01:50]} 25. Bd6 {[%clk 0:01:00]}  Ra8 {[%clk 0:01:48]} 26. h5 {[%clk 0:00:56]}  Bxd3 {[%clk 0:01:45]} 27. Qxd3 {[%clk 0:00:57]}  Qd5 {[%clk 0:01:45]} 28. Be5 {[%clk 0:00:54]}  Rd8 {[%clk 0:01:15]} 29. Bxg7 {[%clk 0:00:39]}  Kxg7 {[%clk 0:01:16]} 30. hxg6 {[%clk 0:00:30]}  hxg6 {[%clk 0:01:17]} 31. Qe4 {[%clk 0:00:22]}  Rac8 {[%clk 0:01:15]} 32. Qxd5 {[%clk 0:00:17]}  Rxd5 {[%clk 0:01:16]} 33. Kf2 {[%clk 0:00:17]}  Rc4 {[%clk 0:01:11]} 34. Ke3 {[%clk 0:00:16]}  Rd6 {[%clk 0:01:07]} 35. f4 {[%clk 0:00:14]}  Rdc6 {[%clk 0:00:55]} 36. Kd2 {[%clk 0:00:12]}  Ra6 {[%clk 0:00:52]} 37. Rc2 {[%clk 0:00:12]}  Ra3 {[%clk 0:00:46]} 38. Rb1 {[%clk 0:00:10]}  a6 {[%clk 0:00:45]} 39. Rb3 {[%clk 0:00:10]}  Raa4 {[%clk 0:00:43]} 40. Rcb2 {[%clk 0:00:08]}  Kf6 {[%clk 0:00:39]} 41. Rb4 {[%clk 0:00:08]}  Kf5 {[%clk 0:00:36]} 42. g3 {[%clk 0:00:06]}  Kg4 {[%clk 0:00:36]} 43. Rxa4 {[%clk 0:00:06]}  Rxa4 {[%clk 0:00:36]} 44. Kd3 {[%clk 0:00:05]}  Kxg3 {[%clk 0:00:33]} 45. Re2 {[%clk 0:00:04]}  Kg4 {[%clk 0:00:27]} 46. Rf2 {[%clk 0:00:04]}  Kf5 {[%clk 0:00:27]} 47. Re2 {[%clk 0:00:04]}  f6 {[%clk 0:00:25]} 48. Rf2 {[%clk 0:00:03]}  Ra3 {[%clk 0:00:24]} 49. Re2 {[%clk 0:00:01]}  b4 {[%clk 0:00:22]} 50. Kc4 {[%clk 0:00:02]}  bxc3 {[%clk 0:00:22]} 51. Kb4 {[%clk 0:00:03]}  c2 {[%clk 0:00:19]} 52. Rxc2 {[%clk 0:00:01]}  Rd3 {[%clk 0:00:18]} 53. Kc4 {[%clk 0:00:01]}  Rf3 {[%clk 0:00:17]} 54. Rb2 {[%clk 0:00:01]}  Rxf4 {[%clk 0:00:17]} 55. Rb6 {[%clk 0:00:02]}  e5 {[%clk 0:00:17]} 56. Rxa6 {[%clk 0:00:03]}  Rxd4+ {[%clk 0:00:17]} 57. Kc3 {[%clk 0:00:03]}  g5 {[%clk 0:00:17]} 58. Ra8 {[%clk 0:00:03]}  g4 {[%clk 0:00:16]} 59. Rg8 {[%clk 0:00:04]}  Rd7 {[%clk 0:00:11]} 60. a4 {[%clk 0:00:03]}  Kf4 {[%clk 0:00:11]} 61. Kb4 {[%clk 0:00:04]}  g3 {[%clk 0:00:11]} 62. a5 {[%clk 0:00:04]}  e4 {[%clk 0:00:11]} 63. Kc5 {[%clk 0:00:04]}  e3 {[%clk 0:00:11]} 64. a6 {[%clk 0:00:03]}  e2 {[%clk 0:00:11]} 65. Re8 {[%clk 0:00:04]}  g2 {[%clk 0:00:10]} 66. Rxe2 {[%clk 0:00:02]}  g1=Q+ {[%clk 0:00:10]} 67. Kc6 {[%clk 0:00:02]}  Qd4 {[%clk 0:00:10]} 0-1


[Site "https://www.chess.com"]

[Event "Titled Tuesday Blitz March 15 Late 2022"]
[White "Zhurbinsky, David"]
[Black "Melkumyan, Hrant"]
[WhiteFideId "2072904"]
[BlackFideId "13302485"]
[WhiteElo "2602"]
[BlackElo "2604"]
[Result "0-1"]
[Round "02"]
[TimeControl "180+1"]
[Date "2022.03.15"]
[WhiteClock "0:01:10"]
[BlackClock "0:00:30"]

1. e4 {[%clk 0:02:59]}  e6 {[%clk 0:02:59]} 2. d4 {[%clk 0:03:00]}  d5 {[%clk 0:03:00]} 3. Nc3 {[%clk 0:03:00]}  Bb4 {[%clk 0:03:00]} 4. e5 {[%clk 0:03:01]}  c5 {[%clk 0:03:00]} 5. a3 {[%clk 0:03:02]}  Ba5 {[%clk 0:03:01]} 6. f4 {[%clk 0:03:02]}  cxd4 {[%clk 0:02:53]} 7. Qxd4 {[%clk 0:03:02]}  Nc6 {[%clk 0:02:52]} 8. Bb5 {[%clk 0:03:02]}  Ne7 {[%clk 0:02:51]} 9. Nf3 {[%clk 0:02:57]}  O-O {[%clk 0:02:51]} 10. Qd3 {[%clk 0:02:38]}  d4 {[%clk 0:02:38]} 11. Bxc6 {[%clk 0:02:30]}  dxc3 {[%clk 0:02:29]} 12. b4 {[%clk 0:02:17]}  Qxd3 {[%clk 0:02:27]} 13. cxd3 {[%clk 0:02:18]}  Nxc6 {[%clk 0:02:22]} 14. bxa5 {[%clk 0:02:18]}  Nxa5 {[%clk 0:02:23]} 15. Be3 {[%clk 0:02:12]}  Bd7 {[%clk 0:02:20]} 16. Rc1 {[%clk 0:02:10]}  Rfc8 {[%clk 0:02:20]} 17. Bd4 {[%clk 0:02:09]}  Nb3 {[%clk 0:02:15]} 18. Rc2 {[%clk 0:02:01]}  Nxd4 {[%clk 0:02:00]} 19. Nxd4 {[%clk 0:02:02]}  Ba4 {[%clk 0:02:00]} 20. Rc1 {[%clk 0:02:02]}  Rd8 {[%clk 0:02:00]} 21. Ne2 {[%clk 0:01:59]}  c2 {[%clk 0:01:46]} 22. Kd2 {[%clk 0:01:57]}  Bb5 {[%clk 0:01:29]} 23. d4 {[%clk 0:01:45]}  Bxe2 {[%clk 0:01:25]} 24. Kxe2 {[%clk 0:01:45]}  Rxd4 {[%clk 0:01:26]} 25. Rxc2 {[%clk 0:01:43]}  Rxf4 {[%clk 0:01:26]} 26. Rc7 {[%clk 0:01:43]}  Re4+ {[%clk 0:01:23]} 27. Kd3 {[%clk 0:01:42]}  Rxe5 {[%clk 0:01:24]} 28. Rxb7 {[%clk 0:01:42]}  g6 {[%clk 0:01:22]} 29. h4 {[%clk 0:01:41]}  a5 {[%clk 0:01:20]} 30. Rf1 {[%clk 0:01:41]}  Rf8 {[%clk 0:01:17]} 31. g4 {[%clk 0:01:40]}  h5 {[%clk 0:01:17]} 32. gxh5 {[%clk 0:01:38]}  Rxh5 {[%clk 0:01:16]} 33. Rf4 {[%clk 0:01:38]}  Kg7 {[%clk 0:01:15]} 34. a4 {[%clk 0:01:37]}  e5 {[%clk 0:01:10]} 35. Rg4 {[%clk 0:01:35]}  Rd8+ {[%clk 0:01:07]} 36. Ke3 {[%clk 0:01:34]}  Rd4 {[%clk 0:01:04]} 37. Rg1 {[%clk 0:01:31]}  Rxa4 {[%clk 0:01:01]} 38. Rf1 {[%clk 0:01:29]}  Rf4 {[%clk 0:01:00]} 39. Ra1 {[%clk 0:01:27]}  a4 {[%clk 0:00:58]} 40. Re7 {[%clk 0:01:25]}  Rfxh4 {[%clk 0:00:57]} 41. Rf1 {[%clk 0:01:25]}  Rf4 {[%clk 0:00:55]} 42. Rxf4 {[%clk 0:01:23]}  exf4+ {[%clk 0:00:56]} 43. Kxf4 {[%clk 0:01:24]}  a3 {[%clk 0:00:56]} 44. Ra7 {[%clk 0:01:24]}  Rh3 {[%clk 0:00:55]} 45. Kg5 {[%clk 0:01:25]}  Rb3 {[%clk 0:00:54]} 46. Ra5 {[%clk 0:01:22]}  Rb4 {[%clk 0:00:50]} 47. Ra7 {[%clk 0:01:15]}  a2 {[%clk 0:00:43]} 48. Re7 {[%clk 0:01:09]}  a1=Q {[%clk 0:00:37]} 49. Re4 {[%clk 0:01:10]}  Qf6+ {[%clk 0:00:33]} 50. Kg4 {[%clk 0:01:09]}  Rxe4+ {[%clk 0:00:31]} 51. Kg3 {[%clk 0:01:08]}  Rf4 {[%clk 0:00:29]} 52. Kg2 {[%clk 0:01:09]}  Qg5+ {[%clk 0:00:29]} 53. Kh3 {[%clk 0:01:10]}  Rh4# {[%clk 0:00:30]} 0-1


[Site "https://www.chess.com"]

[Event "Titled Tuesday Blitz March 15 Late 2022"]
[White "Zomorrodian, Eilia"]
[Black "Farmani Anosheh, Armin"]
[WhiteFideId "12551805"]
[BlackFideId "24613240"]
[WhiteElo "2098"]
[BlackElo "2289"]
[Result "0-1"]
[Round "02"]
[TimeControl "180+1"]
[Date "2022.03.16"]
[WhiteClock "0:00:13"]
[BlackClock "0:00:11"]

1. e4 {[%clk 0:03:00]}  c5 {[%clk 0:03:00]} 2. Nf3 {[%clk 0:02:59]}  d6 {[%clk 0:03:00]} 3. Bb5+ {[%clk 0:02:59]}  Bd7 {[%clk 0:02:59]} 4. Bxd7+ {[%clk 0:02:59]}  Nxd7 {[%clk 0:03:00]} 5. O-O {[%clk 0:02:59]}  Ngf6 {[%clk 0:03:01]} 6. Re1 {[%clk 0:02:59]}  e6 {[%clk 0:03:01]} 7. c3 {[%clk 0:02:59]}  Be7 {[%clk 0:03:00]} 8. d4 {[%clk 0:03:00]}  O-O {[%clk 0:03:01]} 9. h3 {[%clk 0:02:58]}  Rc8 {[%clk 0:02:48]} 10. Bg5 {[%clk 0:02:55]}  h6 {[%clk 0:02:31]} 11. Bh4 {[%clk 0:02:55]}  cxd4 {[%clk 0:02:03]} 12. cxd4 {[%clk 0:02:54]}  d5 {[%clk 0:01:58]} 13. e5 {[%clk 0:02:49]}  Ne4 {[%clk 0:01:57]} 14. Bxe7 {[%clk 0:02:47]}  Qxe7 {[%clk 0:01:58]} 15. Nbd2 {[%clk 0:02:45]}  Nxd2 {[%clk 0:01:50]} 16. Qxd2 {[%clk 0:02:40]}  Nb6 {[%clk 0:01:50]} 17. Rac1 {[%clk 0:02:31]}  Nc4 {[%clk 0:01:49]} 18. Qe2 {[%clk 0:02:31]}  Qb4 {[%clk 0:01:44]} 19. Rc2 {[%clk 0:02:24]}  Rc6 {[%clk 0:01:25]} 20. Rec1 {[%clk 0:02:20]}  Rfc8 {[%clk 0:01:25]} 21. b3 {[%clk 0:02:01]}  Na5 {[%clk 0:01:18]} 22. Rxc6 {[%clk 0:01:55]}  Rxc6 {[%clk 0:01:19]} 23. Rxc6 {[%clk 0:01:38]}  Nxc6 {[%clk 0:01:20]} 24. Qb2 {[%clk 0:01:38]}  Qb5 {[%clk 0:01:03]} 25. Qc3 {[%clk 0:01:25]}  Qe2 {[%clk 0:01:01]} 26. a4 {[%clk 0:01:24]}  a5 {[%clk 0:00:47]} 27. g3 {[%clk 0:01:01]}  Kh7 {[%clk 0:00:38]} 28. Kg2 {[%clk 0:01:01]}  Nb4 {[%clk 0:00:39]} 29. Qd2 {[%clk 0:00:30]}  Qxd2 {[%clk 0:00:20]} 30. Nxd2 {[%clk 0:00:31]}  Nc2 {[%clk 0:00:21]} 31. Nf3 {[%clk 0:00:30]}  Kg6 {[%clk 0:00:20]} 32. g4 {[%clk 0:00:26]}  h5 {[%clk 0:00:20]} 33. Kf1 {[%clk 0:00:25]}  hxg4 {[%clk 0:00:20]} 34. hxg4 {[%clk 0:00:25]}  f6 {[%clk 0:00:20]} 35. Ke2 {[%clk 0:00:24]}  Kf7 {[%clk 0:00:19]} 36. Kd3 {[%clk 0:00:23]}  Nb4+ {[%clk 0:00:19]} 37. Kc3 {[%clk 0:00:23]}  Ke7 {[%clk 0:00:19]} 38. g5 {[%clk 0:00:17]}  f5 {[%clk 0:00:17]} 39. Nh4 {[%clk 0:00:17]}  Kf7 {[%clk 0:00:16]} 40. Ng2 {[%clk 0:00:16]}  Kg6 {[%clk 0:00:16]} 41. Nf4+ {[%clk 0:00:17]}  Kf7 {[%clk 0:00:15]} 42. g6+ {[%clk 0:00:18]}  Ke7 {[%clk 0:00:16]} 43. Nh5 {[%clk 0:00:18]}  Kf8 {[%clk 0:00:15]} 44. Nf4 {[%clk 0:00:19]}  Ke7 {[%clk 0:00:15]} 45. f3 {[%clk 0:00:19]}  Nc6 {[%clk 0:00:15]} 46. Nd3 {[%clk 0:00:19]}  b6 {[%clk 0:00:12]} 47. b4 {[%clk 0:00:19]}  Kd7 {[%clk 0:00:10]} 48. bxa5 {[%clk 0:00:17]}  Nxa5 {[%clk 0:00:09]} 49. Kb4 {[%clk 0:00:15]}  Kc6 {[%clk 0:00:08]} 50. Nf4 {[%clk 0:00:14]}  Kd7 {[%clk 0:00:05]} 51. Nh5 {[%clk 0:00:15]}  Nc6+ {[%clk 0:00:04]} 52. Kc3 {[%clk 0:00:15]}  Ne7 {[%clk 0:00:05]} 53. Nxg7 {[%clk 0:00:13]}  Nxg6 {[%clk 0:00:05]} 54. Nh5 {[%clk 0:00:12]}  Kc6 {[%clk 0:00:05]} 55. Kb4 {[%clk 0:00:11]}  Kc7 {[%clk 0:00:05]} 56. Ng7 {[%clk 0:00:10]}  Nf4 {[%clk 0:00:05]} 57. Kb5 {[%clk 0:00:10]}  Kb7 {[%clk 0:00:06]} 58. Ne8 {[%clk 0:00:08]}  Nd3 {[%clk 0:00:04]} 59. Ng7 {[%clk 0:00:08]}  Nf4 {[%clk 0:00:04]} 60. a5 {[%clk 0:00:08]}  bxa5 {[%clk 0:00:04]} 61. Kxa5 {[%clk 0:00:09]}  Kc7 {[%clk 0:00:05]} 62. Kb5 {[%clk 0:00:09]}  Kd7 {[%clk 0:00:05]} 63. Kc5 {[%clk 0:00:10]}  Ke7 {[%clk 0:00:06]} 64. Kc6 {[%clk 0:00:09]}  Ne2 {[%clk 0:00:06]} 65. Kc5 {[%clk 0:00:09]}  Nf4 {[%clk 0:00:06]} 66. Kc6 {[%clk 0:00:08]}  Kf7 {[%clk 0:00:06]} 67. Nxe6 {[%clk 0:00:06]}  Kxe6 {[%clk 0:00:06]} 68. Kc5 {[%clk 0:00:06]}  Ne2 {[%clk 0:00:06]} 69. Kb4 {[%clk 0:00:05]}  Nxd4 {[%clk 0:00:07]} 70. Kc3 {[%clk 0:00:06]}  Nxf3 {[%clk 0:00:07]} 71. Kd3 {[%clk 0:00:07]}  Nxe5+ {[%clk 0:00:08]} 72. Ke3 {[%clk 0:00:08]}  Kf6 {[%clk 0:00:08]} 73. Ke2 {[%clk 0:00:09]}  d4 {[%clk 0:00:08]} 74. Kf2 {[%clk 0:00:10]}  f4 {[%clk 0:00:08]} 75. Ke1 {[%clk 0:00:11]}  Ke6 {[%clk 0:00:09]} 76. Kd2 {[%clk 0:00:12]}  Kd5 {[%clk 0:00:10]} 77. Ke2 {[%clk 0:00:12]}  Ke4 {[%clk 0:00:11]} 78. Kf2 {[%clk 0:00:13]} 0-1


[Site "https://www.chess.com"]

[Event "Titled Tuesday Blitz March 15 Late 2022"]
[White "Abdyzhapar, Asylbek"]
[Black "Eynullayev, Atilla"]
[WhiteFideId "13800337"]
[BlackFideId "13413570"]
[WhiteElo "2331"]
[BlackElo "1979"]
[Result "1-0"]
[Round "03"]
[TimeControl "180+1"]
[Date "2022.03.16"]
[WhiteClock "0:01:09"]
[BlackClock "0:00:17"]

1. d4 {[%clk 0:03:00]}  Nf6 {[%clk 0:02:59]} 2. Bf4 {[%clk 0:03:00]}  d5 {[%clk 0:02:59]} 3. e3 {[%clk 0:03:00]}  c5 {[%clk 0:02:59]} 4. c3 {[%clk 0:02:59]}  Nc6 {[%clk 0:02:58]} 5. Nd2 {[%clk 0:02:59]}  Bf5 {[%clk 0:02:58]} 6. Qb3 {[%clk 0:02:58]}  Qc8 {[%clk 0:02:56]} 7. dxc5 {[%clk 0:02:58]}  e5 {[%clk 0:02:55]} 8. Bg3 {[%clk 0:02:58]}  Bxc5 {[%clk 0:02:55]} 9. Ngf3 {[%clk 0:02:59]}  e4 {[%clk 0:02:25]} 10. Nd4 {[%clk 0:02:57]}  Bd7 {[%clk 0:02:25]} 11. a4 {[%clk 0:02:53]}  O-O {[%clk 0:02:23]} 12. Be2 {[%clk 0:02:53]}  Bg4 {[%clk 0:02:20]} 13. Bxg4 {[%clk 0:02:48]}  Qxg4 {[%clk 0:02:14]} 14. h3 {[%clk 0:02:48]}  Qd7 {[%clk 0:02:13]} 15. O-O-O {[%clk 0:02:40]}  a6 {[%clk 0:01:59]} 16. f3 {[%clk 0:02:39]}  Na5 {[%clk 0:01:58]} 17. Qa2 {[%clk 0:02:37]}  Bxd4 {[%clk 0:01:49]} 18. exd4 {[%clk 0:02:36]}  e3 {[%clk 0:01:48]} 19. Nb3 {[%clk 0:02:34]}  Nc4 {[%clk 0:01:45]} 20. Rhe1 {[%clk 0:02:28]}  b6 {[%clk 0:01:43]} 21. Na1 {[%clk 0:02:26]}  Rfc8 {[%clk 0:01:26]} 22. Nc2 {[%clk 0:02:25]}  b5 {[%clk 0:01:13]} 23. a5 {[%clk 0:02:24]}  b4 {[%clk 0:01:04]} 24. Nxb4 {[%clk 0:02:22]}  Rab8 {[%clk 0:01:04]} 25. Bxb8 {[%clk 0:02:21]}  Rxb8 {[%clk 0:01:02]} 26. Nd3 {[%clk 0:02:21]}  Qb5 {[%clk 0:00:52]} 27. b3 {[%clk 0:02:20]}  Nxa5 {[%clk 0:00:52]} 28. Kc2 {[%clk 0:02:17]}  Nxb3 {[%clk 0:00:45]} 29. Rxe3 {[%clk 0:02:10]}  a5 {[%clk 0:00:40]} 30. Nc5 {[%clk 0:01:53]}  Nxc5 {[%clk 0:00:33]} 31. dxc5 {[%clk 0:01:52]}  Qxc5 {[%clk 0:00:30]} 32. Rd4 {[%clk 0:01:52]}  h5 {[%clk 0:00:25]} 33. g4 {[%clk 0:01:51]}  g6 {[%clk 0:00:24]} 34. g5 {[%clk 0:01:34]}  Rc8 {[%clk 0:00:24]} 35. gxf6 {[%clk 0:01:27]}  Qxd4 {[%clk 0:00:24]} 36. Re8+ {[%clk 0:01:27]}  Kh7 {[%clk 0:00:25]} 37. Rxc8 {[%clk 0:01:27]}  Qf2+ {[%clk 0:00:25]} 38. Kb1 {[%clk 0:01:20]}  Qe1+ {[%clk 0:00:23]} 39. Kb2 {[%clk 0:01:20]}  Qd2+ {[%clk 0:00:19]} 40. Ka3 {[%clk 0:01:19]}  Qd3 {[%clk 0:00:18]} 41. Qb3 {[%clk 0:01:14]}  a4 {[%clk 0:00:17]} 42. Qb8 {[%clk 0:01:10]}  Kh6 {[%clk 0:00:15]} 43. Qf4+ {[%clk 0:01:08]}  Kh7 {[%clk 0:00:15]} 44. Rh8+ {[%clk 0:01:08]}  Kxh8 {[%clk 0:00:16]} 45. Qh6+ {[%clk 0:01:08]}  Kg8 {[%clk 0:00:17]} 46. Qg7# {[%clk 0:01:09]} 1-0


[Site "https://www.chess.com"]

[Event "Titled Tuesday Blitz March 15 Late 2022"]
[White "Ambartsumova, Karina"]
[Black "Jeet, Jain"]
[WhiteFideId "4166299"]
[BlackFideId "5073022"]
[WhiteElo "2262"]
[BlackElo "2085"]
[Result "1-0"]
[Round "03"]
[TimeControl "180+1"]
[Date "2022.03.16"]
[WhiteClock "0:00:10"]
[BlackClock "0:00:36"]

1. e4 {[%clk 0:02:47]}  c6 {[%clk 0:02:59]} 2. d4 {[%clk 0:02:46]}  d5 {[%clk 0:02:59]} 3. exd5 {[%clk 0:02:46]}  cxd5 {[%clk 0:03:00]} 4. Nf3 {[%clk 0:02:47]}  Nf6 {[%clk 0:02:59]} 5. Ne5 {[%clk 0:02:47]}  Nc6 {[%clk 0:02:57]} 6. Bb5 {[%clk 0:02:46]}  Bd7 {[%clk 0:02:58]} 7. Nxd7 {[%clk 0:02:46]}  Qxd7 {[%clk 0:02:59]} 8. c3 {[%clk 0:02:46]}  e6 {[%clk 0:02:59]} 9. O-O {[%clk 0:02:46]}  Bd6 {[%clk 0:02:56]} 10. Nd2 {[%clk 0:02:45]}  O-O {[%clk 0:02:56]} 11. Nf3 {[%clk 0:02:45]}  h6 {[%clk 0:02:56]} 12. Re1 {[%clk 0:02:44]}  a6 {[%clk 0:02:55]} 13. Bd3 {[%clk 0:02:31]}  b5 {[%clk 0:02:54]} 14. Qe2 {[%clk 0:02:23]}  Qc7 {[%clk 0:02:40]} 15. h3 {[%clk 0:02:17]}  Bf4 {[%clk 0:02:40]} 16. Ne5 {[%clk 0:02:15]}  Bxc1 {[%clk 0:02:39]} 17. Raxc1 {[%clk 0:02:16]}  Nxe5 {[%clk 0:02:39]} 18. dxe5 {[%clk 0:02:16]}  Nd7 {[%clk 0:02:39]} 19. Qh5 {[%clk 0:02:13]}  f5 {[%clk 0:02:25]} 20. exf6 {[%clk 0:02:08]}  Rxf6 {[%clk 0:02:25]} 21. Re2 {[%clk 0:01:55]}  Raf8 {[%clk 0:02:19]} 22. Rce1 {[%clk 0:01:54]}  e5 {[%clk 0:02:17]} 23. Bc2 {[%clk 0:01:53]}  Qc5 {[%clk 0:02:14]} 24. Qh4 {[%clk 0:01:47]}  a5 {[%clk 0:02:08]} 25. Qg3 {[%clk 0:01:22]}  Kh8 {[%clk 0:02:02]} 26. a3 {[%clk 0:01:09]}  a4 {[%clk 0:01:58]} 27. Rf1 {[%clk 0:00:54]}  e4 {[%clk 0:01:58]} 28. Bb1 {[%clk 0:00:47]}  Qc6 {[%clk 0:01:57]} 29. Ba2 {[%clk 0:00:45]}  Rg6 {[%clk 0:01:58]} 30. Qh2 {[%clk 0:00:37]}  Rf5 {[%clk 0:01:42]} 31. Rd1 {[%clk 0:00:34]}  Rfg5 {[%clk 0:01:40]} 32. g3 {[%clk 0:00:33]}  Ne5 {[%clk 0:01:37]} 33. Qg2 {[%clk 0:00:31]}  Nf3+ {[%clk 0:01:33]} 34. Kf1 {[%clk 0:00:31]}  Rf6 {[%clk 0:01:28]} 35. h4 {[%clk 0:00:17]}  Re5 {[%clk 0:01:24]} 36. Qh3 {[%clk 0:00:16]}  h5 {[%clk 0:01:18]} 37. Re3 {[%clk 0:00:14]}  Ref5 {[%clk 0:01:17]} 38. Re2 {[%clk 0:00:14]}  Qc5 {[%clk 0:01:17]} 39. g4 {[%clk 0:00:14]}  hxg4 {[%clk 0:01:16]} 40. Qg3 {[%clk 0:00:14]}  Rf8 {[%clk 0:01:11]} 41. Kg2 {[%clk 0:00:13]}  d4 {[%clk 0:01:03]} 42. Rxe4 {[%clk 0:00:11]}  dxc3 {[%clk 0:01:00]} 43. Rxg4 {[%clk 0:00:11]}  c2 {[%clk 0:00:55]} 44. Rxg7 {[%clk 0:00:11]}  Qe5 {[%clk 0:00:37]} 45. Rg8+ {[%clk 0:00:10]}  Kh7 {[%clk 0:00:36]} 46. Qg6# {[%clk 0:00:10]} 1-0


[Site "https://www.chess.com"]

[Event "Titled Tuesday Blitz March 15 Late 2022"]
[White "Andreikin, Dmitry"]
[Black "Pichot, Alan"]
[WhiteFideId "4158814"]
[BlackFideId "110973"]
[WhiteElo "2736"]
[BlackElo "2579"]
[Result "1-0"]
[Round "03"]
[TimeControl "180+1"]
[Date "2022.03.15"]
[WhiteClock "0:01:19"]
[BlackClock "0:00:25"]

1. d4 {[%clk 0:02:57]}  Nf6 {[%clk 0:02:59]} 2. c4 {[%clk 0:02:57]}  e6 {[%clk 0:03:00]} 3. Nf3 {[%clk 0:02:56]}  d5 {[%clk 0:03:00]} 4. g3 {[%clk 0:02:56]}  Be7 {[%clk 0:02:58]} 5. Bg2 {[%clk 0:02:53]}  O-O {[%clk 0:02:57]} 6. O-O {[%clk 0:02:52]}  dxc4 {[%clk 0:02:57]} 7. Qc2 {[%clk 0:02:52]}  a6 {[%clk 0:02:56]} 8. a4 {[%clk 0:02:51]}  c5 {[%clk 0:02:49]} 9. dxc5 {[%clk 0:02:47]}  Bxc5 {[%clk 0:02:50]} 10. Na3 {[%clk 0:02:34]}  Bd7 {[%clk 0:02:28]} 11. Rd1 {[%clk 0:02:27]}  Qe7 {[%clk 0:02:24]} 12. Nxc4 {[%clk 0:02:24]}  Bc6 {[%clk 0:02:21]} 13. Bg5 {[%clk 0:02:21]}  h6 {[%clk 0:02:12]} 14. Bxf6 {[%clk 0:02:21]}  Qxf6 {[%clk 0:02:13]} 15. Nce5 {[%clk 0:02:18]}  Ba7 {[%clk 0:01:59]} 16. b4 {[%clk 0:02:09]}  Bxf3 {[%clk 0:01:54]} 17. Bxf3 {[%clk 0:02:08]}  Qxe5 {[%clk 0:01:36]} 18. Bxb7 {[%clk 0:02:07]}  Bxf2+ {[%clk 0:01:36]} 19. Kxf2 {[%clk 0:02:07]}  Ra7 {[%clk 0:01:37]} 20. Bf3 {[%clk 0:02:05]}  Nd7 {[%clk 0:01:31]} 21. Qc6 {[%clk 0:01:56]}  Nf6 {[%clk 0:01:10]} 22. Qb6 {[%clk 0:01:55]}  Rc7 {[%clk 0:01:06]} 23. Qxa6 {[%clk 0:01:44]}  g5 {[%clk 0:01:06]} 24. Qd6 {[%clk 0:01:41]}  Qc3 {[%clk 0:00:40]} 25. Rac1 {[%clk 0:01:31]}  Qxc1 {[%clk 0:00:40]} 26. Rxc1 {[%clk 0:01:32]}  Rxc1 {[%clk 0:00:40]} 27. a5 {[%clk 0:01:32]}  Kg7 {[%clk 0:00:34]} 28. a6 {[%clk 0:01:31]}  g4 {[%clk 0:00:34]} 29. Bg2 {[%clk 0:01:30]}  Ra1 {[%clk 0:00:33]} 30. b5 {[%clk 0:01:28]}  Rc8 {[%clk 0:00:34]} 31. Qd4 {[%clk 0:01:27]}  Ra2 {[%clk 0:00:32]} 32. a7 {[%clk 0:01:25]}  e5 {[%clk 0:00:25]} 33. Qe3 {[%clk 0:01:19]} 1-0


[Site "https://www.chess.com"]